bitfinex-derivatives/quotes_SOLF0:USTF0_20240920
["timestamp","ask_amount","ask_price","bid_price","bid_amount"]
[1726862102045,16.36,146.92,146.86,3.4042]
[1726862102349,3.3790685,146.95,146.85,1.3055]
[1726862102350,16.36,146.91,146.85,1.3055]
[1726862102539,27.244,146.97,146.85,1.3055]
[1726862102540,16.36,146.93,146.85,1.3055]
[1726862102951,16.36,146.91,146.84,1.4157]
[1726862103151,16.36,146.89,146.81,1.2958]
[1726862103347,16.36,146.89,146.8,17.76]
[1726862103348,3.4055,146.82,146.8,1.3759]
[1726862103651,16.36,146.86,146.8,1.3759]
[1726862103847,20.44,146.94,146.83,3.405]
[1726862103848,3.4043,146.87,146.83,3.405]
[1726862104149,16.36,146.9,146.81,17.6957]
[1726862104349,16.36,146.86,146.81,1.3357]
[1726862105252,16.36,146.86,146.8,1.3759]
[1726862105449,3.4052,146.83,146.8,1.3759]
[1726862105639,16.36,146.89,146.8,1.3759]
[1726862106147,3.4047,146.85,146.81,3.4054]
[1726862106346,16.36,146.87,146.81,3.4054]
[1726862106941,16.36,146.87,146.82,3.4052]
[1726862107755,3.4047,146.85,146.81,3.4054]
[1726862108055,16.36,146.87,146.8,1.3759]
[1726862108265,16.36,146.87,146.8,4.7817]
[1726862108547,16.36,146.86,146.8,1.3759]
[1726862108755,3.4054,146.82,146.78,3.4062]
[1726862108939,16.36,146.84,146.75,1.2916]
[1726862109446,16.36,146.82,146.75,1.2916]
[1726862109754,16.36,146.82,146.76,3.4066]
[1726862109957,16.36,146.82,146.75,1.2916]
[1726862110250,3.4062,146.79,146.75,4.6985]
[1726862110441,16.36,146.82,146.75,1.2916]
[1726862110648,3.4064,146.78,146.74,4.7427]
[1726862110847,3.4064,146.78,146.74,1.3357]
[1726862111051,16.36,146.82,146.74,1.3357]
[1726862111249,3.4064,146.78,146.74,4.7428]
[1726862111452,3.4064,146.78,146.73,1.4]
[1726862111759,16.36,146.82,146.73,1.4]
[1726862111760,3.4061,146.79,146.75,3.4068]
[1726862111959,19.803483,146.83,146.74,16.36]
[1726862112252,6.8076,146.89,146.73,1.4]
[1726862112253,3.4055,146.82,146.78,3.4061]
[1726862112450,3.4247462,146.86,146.77,16.36]
[1726862112658,16.36,146.87,146.77,16.36]
[1726862112855,3.4047,146.85,146.81,3.4055]
[1726862113046,19.68209893,146.87,146.81,3.4055]
[1726862113245,16.36,146.87,146.79,16.36]
[1726862113452,16.36,146.87,146.78,2.6431]
[1726862113453,16.36,146.91,146.81,16.36]
[1726862113659,16.36,146.91,146.83,16.36]
[1726862113844,3.4037,146.9,146.83,16.36]
[1726862114154,16.36,146.93,146.83,16.36]
[1726862114356,1.16970739,146.92,146.83,16.36]
[1726862115057,3.4036,146.9,146.85,16.36]
[1726862115767,3.4036,146.9,146.86,3.4043]
[1726862118457,3.47950428,146.97,146.85,16.36]
[1726862118662,3.47950428,146.97,146.89,16.36]
[1726862118663,1.16966543,146.96,146.89,16.36]
[1726862118857,3.47373826,146.96,146.89,16.36]
[1726862119052,3.4023,146.96,146.91,3.4031]
[1726862119248,3.48526107,146.96,146.89,16.36]
[1726862119558,3.4033,146.91,146.87,21.0605]
[1726862119753,16.36,146.95,146.87,4.7005]
[1726862119954,16.36,146.95,146.87,17.6564]
[1726862120256,152.56,147.03,146.89,16.36]
[1726862120561,16.36,146.98,146.89,16.36]
[1726862120764,3.33582953,146.97,146.89,16.36]
[1726862121058,16.36,146.96,146.87,17.6564]
[1726862121460,3.403,146.92,146.89,3.4037]
[1726862121654,3.403,146.92,146.87,17.6564]
[1726862121655,16.36,146.96,146.82,16.36]
[1726862121851,173.0,147.03,146.8,16.36]
[1726862121852,20.44,146.99,146.8,16.36]
[1726862122054,16.36,146.89,146.83,3.4049]
[1726862122858,16.36,146.89,146.8,16.36]
[1726862123460,3.4044,146.86,146.82,3.4052]
[1726862124056,3.4047,146.85,146.81,3.4055]
[1726862124259,16.36,146.89,146.8,16.36]
[1726862124559,3.4054,146.82,146.79,2.7393]
[1726862124769,3.4054,146.82,146.79,1.3335]
[1726862124951,16.36,146.85,146.79,1.3335]
[1726862125553,3.4056,146.81,146.79,1.3335]
[1726862125948,6.804,146.97,146.79,17.6935]
[1726862126162,16.36,146.9,146.8,1.3445]
[1726862126364,16.36,146.88,146.8,1.3445]
[1726862126556,16.36,146.86,146.8,1.3445]
[1726862127064,3.4055,146.81,146.8,1.3445]
[1726862127255,16.36,146.86,146.8,1.3445]
[1726862127763,16.36,146.86,146.79,1.3335]
[1726862130263,16.36,146.84,146.77,2.6679]
[1726862130963,3.4059,146.8,146.77,2.6679]
[1726862131162,16.36,146.84,146.77,2.6679]
[1726862131364,3.4053,146.82,146.78,3.4061]
[1726862131559,16.36,146.86,146.77,2.6679]
[1726862132065,3.4052,146.83,146.79,3.4059]
[1726862132357,16.36,146.86,146.77,2.6679]
[1726862133161,16.36,146.84,146.77,2.6679]
[1726862133558,3.4054,146.82,146.78,3.4061]
[1726862133956,3.4054,146.82,146.77,2.6679]
[1726862134763,3.4054,146.82,146.79,3.4059]
[1726862135564,16.36,146.84,146.77,2.6679]
[1726862136564,16.36,146.88,146.78,16.36]
[1726862137356,3.405,146.84,146.78,16.36]
[1726862137557,16.36,146.88,146.78,16.36]
[1726862137959,3.4047,146.85,146.82,3.4052]
[1726862138362,16.36,146.88,146.79,16.36]
[1726862138668,16.36,146.88,146.8,1.3387]
[1726862139556,3.34378604,146.9,146.8,1.3387]
[1726862139557,16.36,146.85,146.8,1.3387]
[1726862140466,3.405,146.84,146.8,1.3387]
[1726862141368,3.405,146.84,146.81,3.4055]
[1726862141560,3.4052,146.83,146.8,1.3387]
[1726862141871,3.45652854,146.88,146.79,3.4059]
[1726862141872,16.36,146.84,146.79,3.4059]
[1726862142168,3.4053,146.82,146.79,3.4059]
[1726862142368,16.36,146.84,146.77,2.6679]
[1726862142568,16.36,146.81,146.77,1.3445]
[1726862143672,3.4058,146.8,146.77,4.7509]
[1726862143878,16.36,146.83,146.77,1.3445]
[1726862144473,3.4057,146.81,146.78,3.4062]
[1726862145477,16.36,146.83,146.77,4.7509]
[1726862145478,3.4059,146.8,146.77,4.7509]
[1726862147875,3.4056,146.81,146.77,1.3445]
[1726862148374,3.4056,146.81,146.78,3.4061]
[1726862149773,3.4054,146.82,146.79,3.406]
[1726862150078,16.36,146.85,146.77,1.3445]
[1726862150378,3.4054,146.82,146.79,3.4059]
[1726862153881,16.36,146.87,146.77,17.7045]
[1726862154081,16.36,146.87,146.78,1.3172]
[1726862154282,3.4047,146.85,146.82,3.4052]
[1726862154480,16.36,146.87,146.78,1.3172]
[1726862155083,3.4048,146.85,146.78,1.3172]
[1726862155587,10.21927336,146.91,146.79,16.36]
[1726862155588,16.36,146.88,146.79,16.36]
[1726862155887,16.36,146.88,146.8,1.4007]
[1726862156474,3.4047,146.85,146.82,3.4052]
[1726862157485,16.36,146.87,146.8,1.4007]
[1726862158287,3.4049,146.84,146.81,3.4054]
[1726862159286,3.4049,146.84,146.82,3.4053]
[1726862160290,3.4047,146.85,146.8,1.4007]
[1726862160689,16.36,146.87,146.8,1.4007]
[1726862160896,3.4046,146.86,146.83,3.4049]
[1726862161994,20.44,146.94,146.81,16.36]
[1726862162192,16.36,146.91,146.83,16.36]
[1726862162595,3.35456914,146.92,146.81,16.36]
[1726862162895,16.36,146.89,146.81,16.36]
[1726862163396,3.4045,146.86,146.83,3.4049]
[1726862163597,16.36,146.89,146.83,3.4049]
[1726862163793,3.4047,146.85,146.82,3.4052]
[1726862163997,16.36,146.87,146.82,3.4052]
[1726862164197,3.4049,146.84,146.81,3.4054]
[1726862164496,16.36,146.87,146.8,1.4007]
[1726862165086,23.90593402,146.92,146.8,1.4007]
[1726862165087,16.36,146.89,146.8,1.4007]
[1726862165291,16.36,146.89,146.81,16.36]
[1726862165894,16.36,146.89,146.8,1.4007]
[1726862166195,16.36,146.87,146.8,1.4007]
[1726862166792,3.405,146.84,146.81,3.4054]
[1726862166993,3.405,146.84,146.8,1.4007]
[1726862167802,3.405,146.84,146.82,3.4053]
[1726862173001,13.8647,146.85,146.83,3.405]
[1726862173305,3.4047,146.85,146.83,3.405]
[1726862173699,3.4047,146.85,146.81,10.46]
[1726862173700,3.4047,146.85,146.82,3.4052]
[1726862174399,10.27233402,146.92,146.84,10.46]
[1726862174600,10.46,146.88,146.84,10.46]
[1726862174803,13.8641,146.88,146.85,3.4045]
[1726862175399,3.4041,146.88,146.86,3.4044]
[1726862176510,13.8638,146.89,146.86,3.4044]
[1726862176704,10.46,146.88,146.86,3.4044]
[1726862177504,13.8641,146.88,146.85,3.4045]
[1726862179106,3.4042,146.87,146.85,3.4045]
[1726862184213,3.4042,146.87,146.84,3.4048]
[1726862184411,13.8642,146.87,146.84,3.4048]
[1726862184808,10.46,146.87,146.82,1.3782]
[1726862185013,10.46,146.84,146.8,1.4007]
[1726862185507,10.46,146.84,146.82,3.4053]
[1726862185703,10.46,146.85,146.82,3.4053]
[1726862186817,3.4049,146.84,146.81,3.4055]
[1726862187912,13.8649,146.84,146.81,3.4055]
[1726862188110,13.8649,146.84,146.8,1.4007]
[1726862188111,10.46,146.84,146.8,1.4007]
[1726862188311,10.46,146.82,146.78,11.7772]
[1726862188716,13.8654,146.82,146.79,3.4059]
[1726862190608,13.8654,146.82,146.8,3.4058]
[1726862191817,3.46593402,146.92,146.81,10.46]
[1726862192018,10.46,146.89,146.84,10.46]
[1726862192411,3.48820544,146.92,146.78,4.78190322]
[1726862192412,3.4043,146.87,146.83,13.8649]
[1726862192610,10.46,146.88,146.83,13.8649]
[1726862193007,10.46,146.88,146.82,3.4053]
[1726862193223,10.46,146.86,146.82,10.46]
[1726862193422,10.46,146.86,146.78,1.3172]
[1726862193423,10.46,146.86,146.81,10.46]
[1726862193814,3.4047,146.85,146.82,3.4053]
[1726862194119,3.4047,146.85,146.81,10.46]
[1726862194323,3.405,146.84,146.81,13.8654]
[1726862194508,10.46,146.84,146.81,10.46]
[1726862194916,3.4051,146.83,146.8,3.4056]
[1726862196922,10.46,146.84,146.79,10.46]
[1726862197119,13.865,146.84,146.81,3.4054]
[1726862197921,3.4051,146.83,146.81,3.4054]
[1726862198421,3.4051,146.83,146.8,3.4056]
[1726862198618,3.4051,146.83,146.8,13.8656]
[1726862199024,3.4051,146.83,146.81,3.4055]
[1726862200217,3.4053,146.82,146.8,13.8657]
[1726862200419,10.46,146.83,146.78,11.7772]
[1726862200623,10.46,146.82,146.78,1.3172]
[1726862201321,3.4055,146.81,146.79,3.406]
[1726862201525,3.4055,146.81,146.78,1.3172]
[1726862202512,3.4055,146.81,146.78,11.7772]
[1726862203525,3.4055,146.81,146.79,3.406]
[1726862203818,3.4055,146.81,146.78,11.7772]
[1726862203819,3.4058,146.8,146.78,10.46]
[1726862204024,3.4058,146.8,146.78,13.8661]
[1726862204518,3.4057,146.81,146.78,13.8661]
[1726862206323,3.4057,146.81,146.79,3.406]
[1726862211825,3.4057,146.81,146.78,13.8661]
[1726862214629,10.46,146.79,146.72,1.3084]
[1726862214824,10.46,146.77,146.72,1.3084]
[1726862215026,10.46,146.77,146.74,3.4071]
[1726862215027,13.8666,146.77,146.74,3.4071]
[1726862215525,3.4066,146.77,146.74,3.4071]
[1726862216033,3.4063,146.78,146.75,3.4069]
[1726862218434,10.46,146.79,146.76,3.4067]
[1726862218736,10.46,146.79,146.75,10.46]
[1726862218935,10.46,146.79,146.76,3.4067]
[1726862219397,10.46,146.8,146.75,10.46]
[1726862219524,10.46,146.8,146.78,3.4062]
[1726862220039,3.4056,146.81,146.79,3.406]
[1726862220040,10.46,146.81,146.79,3.406]
[1726862220238,3.44754349,146.87,146.79,10.46]
[1726862220529,20.44,146.91,146.8,10.46]
[1726862220740,20.44,146.91,146.81,10.46]
[1726862220741,10.46,146.86,146.81,10.46]
[1726862221640,10.46,146.86,146.83,3.405]
[1726862223042,13.8644,146.86,146.83,3.405]
[1726862223241,10.46,146.85,146.82,3.4052]
[1726862223437,10.46,146.85,146.81,10.46]
[1726862223836,10.46,146.85,146.82,3.4053]
[1726862224134,10.46,146.86,146.81,10.46]
[1726862224438,10.46,146.86,146.83,3.4049]
[1726862224648,13.8642,146.87,146.82,10.46]
[1726862225050,13.8642,146.87,146.84,3.4048]
[1726862225641,20.44,146.97,146.83,10.46]
[1726862225848,1.1696238,146.93,146.86,10.46]
[1726862226039,3.36354152,146.92,146.86,10.46]
[1726862226243,13.82354152,146.92,146.87,10.46]
[1726862226550,10.46,146.92,146.87,10.46]
[1726862226847,3.4033,146.91,146.88,3.4039]
[1726862227247,13.8635,146.9,146.87,3.4041]
[1726862227548,10.46,146.9,146.84,10.46]
[1726862228141,10.46,146.89,146.85,3.4045]
[1726862228338,10.46,146.87,146.83,10.46]
[1726862228742,10.46,146.87,146.84,3.4048]
[1726862228944,3.32187713,146.9,146.84,3.4048]
[1726862229144,10.46,146.87,146.84,3.4048]
[1726862229939,13.8642,146.87,146.84,3.4048]
[1726862230448,13.8642,146.87,146.85,3.4045]
[1726862230644,1.0,146.96,146.85,10.46]
[1726862230947,10.46,146.9,146.85,10.46]
[1726862231152,3.4038,146.89,146.86,3.4043]
[1726862231370,10.46,146.9,146.85,10.46]
[1726862231747,13.8636,146.9,146.87,3.4041]
[1726862231974,3.4036,146.9,146.87,3.4041]
[1726862232557,3.4037,146.89,146.87,3.4041]
[1726862233049,16.33,146.92,146.87,3.4041]
[1726862233251,3.4033,146.91,146.87,3.4041]
[1726862233557,16.33,146.92,146.87,3.4041]
[1726862234257,19.73189365,146.92,146.87,3.4041]
[1726862234755,3.4036,146.9,146.87,3.4041]
[1726862235548,116.80760115,146.94,146.85,16.33]
[1726862235755,100.47760115,146.94,146.87,16.33]
[1726862236259,3.4029,146.93,146.9,3.4034]
[1726862237950,3.4029,146.93,146.87,16.33]
[1726862238147,3.4026,146.94,146.87,16.33]
[1726862239060,3.4026,146.94,146.91,3.4031]
[1726862240165,3.4025,146.95,146.87,16.33]
[1726862240366,3.4025,146.95,146.89,16.33]
[1726862240659,3.4025,146.95,146.92,3.4028]
[1726862240962,3.4022,146.96,146.91,16.33]
[1726862241164,3.4022,146.96,146.91,17.7077]
[1726862241558,3.4022,146.96,146.93,3.4026]
[1726862242050,3.4019,146.97,146.94,3.4025]
[1726862242863,3.4021,146.96,146.93,3.4027]
[1726862243763,19.80654388,147.0,146.93,3.4027]
[1726862244158,3.4022,146.96,146.93,3.4027]
[1726862244360,19.80654388,147.0,146.94,3.4024]
[1726862244660,16.33,147.04,146.94,16.33]
[1726862244863,3.4015,146.99,146.95,2.7829]
[1726862245259,3.4011,147.01,146.95,2.7829]
[1726862245460,6.7983,147.09,146.98,16.33]
[1726862245667,16.33,147.07,146.98,16.33]
[1726862245866,1.16865733,147.06,146.99,3.4013]
[1726862246258,19.73783833,147.07,146.99,3.4013]
[1726862246660,3.4009,147.01,146.98,3.4015]
[1726862247055,3.40137443,147.04,146.97,3.4018]
[1726862247256,27.2283,147.09,146.95,2.7829]
[1726862247257,16.33,147.02,146.95,2.7829]
[1726862247869,3.4016,146.99,146.96,3.402]
[1726862250669,3.4018,146.98,146.95,2.7829]
[1726862251474,3.4014,146.99,146.95,6.1851]
[1726862251970,3.4014,146.99,146.96,10.45]
[1726862252363,3.4016,146.98,146.96,10.45]
[1726862253065,3.4021,146.96,146.93,13.8527]
[1726862253874,3.4021,146.96,146.93,3.4027]
[1726862254375,16.34,146.98,146.91,1.3777]
[1726862254578,16.34,146.99,146.91,1.3777]
[1726862254879,16.34,146.99,146.92,3.403]
[1726862255468,16.34,146.99,146.93,3.4027]
[1726862255876,6.799,147.08,146.97,16.34]
[1726862256067,3.4011,147.01,146.97,19.7417]
[1726862256272,3.4011,147.01,146.97,16.34]
[1726862257069,16.34,147.03,146.94,16.34]
[1726862257264,16.34,147.03,146.95,3.4022]
[1726862257469,43.569,147.08,146.95,3.4022]
[1726862257470,3.4018,146.98,146.95,3.4022]
[1726862257666,16.34,147.02,146.93,16.34]
[1726862258180,3.4019,146.97,146.94,3.4024]
[1726862259179,3.4021,146.96,146.93,19.7427]
[1726862259475,16.34,147.0,146.91,1.3777]
[1726862259665,3.4023,146.95,146.92,3.4029]
[1726862259867,19.66346536,147.0,146.91,1.3777]
[1726862260684,19.66346536,147.0,146.91,4.7807]
[1726862260979,19.66346536,147.0,146.91,1.3777]
[1726862262179,19.66346536,147.0,146.92,3.403]
[1726862262180,3.4025,146.95,146.92,3.403]
[1726862262980,3.4025,146.95,146.91,1.3777]
[1726862263675,3.4025,146.95,146.92,3.4028]
[1726862264781,3.4026,146.94,146.92,3.4028]
[1726862265680,3.4024,146.95,146.93,3.4026]
[1726862265886,3.32346536,147.0,146.93,3.4026]
[1726862266181,16.34,147.0,146.93,3.4026]
[1726862266386,3.4023,146.96,146.93,3.4026]
[1726862267679,3.4023,146.96,146.94,3.4025]
[1726862268802,19.77418186,147.0,146.9,2.8185]
[1726862269081,16.34,146.98,146.9,19.1585]
[1726862269986,3.4023,146.95,146.92,3.4028]
[1726862270385,16.34,146.97,146.9,2.8185]
[1726862270577,16.34,146.97,146.9,1.3921]
[1726862270779,16.34,146.97,146.88,16.34]
[1726862271080,3.4029,146.93,146.9,3.4033]
[1726862271781,3.4029,146.93,146.88,16.34]
[1726862272793,16.34,146.97,146.88,16.34]
[1726862272986,16.34,146.95,146.87,2.7652]
[1726862273187,3.4035,146.9,146.87,2.7652]
[1726862273676,3.4035,146.9,146.88,3.4038]
[1726862274084,3.4035,146.9,146.88,13.8738]
[1726862274687,3.4033,146.91,146.88,13.8738]
[1726862275890,3.4033,146.91,146.89,13.8737]
[1726862276283,3.4031,146.92,146.89,13.8737]
[1726862276484,10.47,146.95,146.9,13.8732]
[1726862277693,3.4029,146.93,146.9,13.8732]
[1726862278897,10.47,146.95,146.92,3.403]
[1726862279595,13.8725,146.95,146.92,3.403]
[1726862279792,10.47,146.95,146.92,3.403]
[1726862280186,3.4024,146.95,146.92,3.403]
[1726862280393,10.47,146.95,146.91,13.8731]
[1726862280598,10.47,146.93,146.87,2.7652]
[1726862280900,10.47,146.93,146.88,10.47]
[1726862281094,10.47,146.93,146.89,3.4036]
[1726862281396,3.403,146.92,146.89,3.4036]
[1726862281789,10.47,146.92,146.88,3.4038]
[1726862282088,10.47,146.92,146.86,1.341]
[1726862282089,10.47,146.9,146.84,10.47]
[1726862282997,3.4038,146.89,146.86,3.4043]
[1726862283396,10.47,146.89,146.84,10.47]
[1726862283590,10.47,146.87,146.83,13.1592]
[1726862283790,10.47,146.85,146.8,11.8823]
[1726862284297,10.47,146.86,146.81,10.47]
[1726862284500,10.47,146.85,146.8,11.8823]
[1726862284999,3.4049,146.84,146.81,3.4054]
[1726862285197,3.35693842,146.94,146.8,1.4123]
[1726862285405,10.47,146.89,146.84,10.47]
[1726862285703,10.47,146.89,146.84,13.8748]
[1726862285704,3.4043,146.87,146.84,13.8748]
[1726862285890,3.4043,146.87,146.84,3.4048]
[1726862289303,16.34,146.89,146.81,16.34]
[1726862289897,16.34,146.88,146.8,1.4123]
[1726862290496,3.405,146.84,146.81,3.4054]
[1726862291103,3.4054,146.82,146.79,6.1879]
[1726862291305,16.34,146.84,146.79,6.1879]
[1726862292903,3.4055,146.82,146.79,6.1879]
[1726862293598,16.34,146.84,146.75,16.34]
[1726862293798,16.34,146.84,146.75,19.1024]
[1726862294200,3.4059,146.8,146.77,3.4063]
[1726862295108,3.4059,146.8,146.78,3.4062]
[1726862295907,16.34,146.82,146.76,3.4066]
[1726862296806,16.34,146.82,146.77,3.4064]
[1726862297310,3.4059,146.8,146.77,3.4064]
[1726862297700,16.34,146.84,146.78,3.4062]
[1726862297899,16.34,146.84,146.76,16.34]
[1726862298302,16.34,146.84,146.78,3.4061]
[1726862298713,16.34,146.83,146.75,2.7624]
[1726862298903,3.406,146.79,146.76,3.4066]
[1726862299110,3.406,146.79,146.75,2.7624]
[1726862299313,16.34,146.83,146.75,2.7624]
[1726862299813,3.4056,146.81,146.77,3.4063]
[1726862300111,16.34,146.83,146.77,3.4063]
[1726862300502,3.4059,146.8,146.77,3.4063]
[1726862301609,3.4056,146.81,146.78,3.4061]
[1726862302316,3.4056,146.81,146.79,3.406]
[1726862302509,3.4056,146.81,146.75,1.3669]
[1726862302703,3.4058,146.8,146.77,3.4063]
[1726862302907,16.34,146.83,146.77,3.4063]
[1726862303312,3.4061,146.79,146.76,3.4066]
[1726862303509,16.34,146.81,146.76,3.4066]
[1726862303911,3.4061,146.79,146.76,3.4066]
[1726862305615,16.34,146.79,146.72,1.3828]
[1726862306018,3.4067,146.77,146.74,3.4071]
[1726862308420,3.4067,146.77,146.75,3.4069]
[1726862311323,16.34,146.81,146.72,1.3828]
[1726862311524,3.32993407,146.82,146.73,17.7114]
[1726862311525,16.34,146.82,146.73,17.7114]
[1726862311824,16.34,146.85,146.75,16.34]
[1726862312127,16.34,146.87,146.77,16.34]
[1726862312314,16.34,146.87,146.79,16.34]
[1726862312821,16.34,146.87,146.8,1.3124]
[1726862313224,16.34,146.87,146.82,3.4051]
[1726862313423,16.34,146.87,146.8,1.3124]
[1726862314618,3.405,146.84,146.81,3.4054]
[1726862315226,3.405,146.84,146.8,1.3124]
[1726862315426,3.4051,146.83,146.8,4.718]
[1726862315935,3.4049,146.84,146.81,3.4055]
[1726862316622,19.7447,146.85,146.82,3.4052]
[1726862316832,3.4047,146.85,146.82,3.4052]
[1726862317030,3.4047,146.85,146.8,1.3124]
[1726862317230,3.4047,146.85,146.81,3.4054]
[1726862317730,3.4049,146.84,146.81,3.4054]
[1726862318131,3.4047,146.85,146.81,3.4054]
[1726862318629,16.34,146.88,146.81,16.34]
[1726862318827,136.24,146.92,146.81,16.34]
[1726862318828,19.69570745,146.9,146.81,16.34]
[1726862319030,16.34,146.9,146.81,17.6769]
[1726862319219,3.4041,146.88,146.84,3.4047]
[1726862319421,16.34,146.9,146.84,3.4047]
[1726862319632,19.74305249,146.9,146.84,3.4047]
[1726862319929,3.4041,146.88,146.84,3.4047]
[1726862320437,19.74305249,146.9,146.85,3.4046]
[1726862321734,3.4038,146.89,146.85,3.4046]
[1726862322032,16.34,146.9,146.85,3.4046]
[1726862322725,16.34,146.92,146.83,16.34]
[1726862322931,3.4036,146.9,146.84,1.319]
[1726862323227,3.4036,146.9,146.86,3.4042]
[1726862323432,19.68423712,146.92,146.86,3.4042]
[1726862323827,3.4039,146.89,146.85,3.4045]
[1726862324222,19.68423712,146.92,146.85,3.4045]
[1726862324936,3.4039,146.89,146.86,3.4044]
[1726862326637,3.4036,146.9,146.87,3.4042]
[1726862326834,19.68423712,146.92,146.84,1.319]
[1726862327334,3.4037,146.89,146.86,3.4043]
[1726862330035,3.4036,146.9,146.87,3.404]
[1726862330333,16.34,146.94,146.84,17.659]
[1726862330529,3.4032,146.92,146.89,3.4036]
[1726862331436,3.4029,146.93,146.89,3.4036]
[1726862331839,16.34,146.96,146.9,3.4033]
[1726862332134,3.4027,146.94,146.88,16.34]
[1726862332339,3.4027,146.94,146.9,3.4032]
[1726862332530,3.4027,146.94,146.88,16.34]
[1726862333334,3.4024,146.95,146.9,16.34]
[1726862333531,16.34,146.98,146.92,3.4028]
[1726862333942,3.4023,146.95,146.92,3.4028]
[1726862334436,3.4025,146.94,146.91,4.7449]
[1726862335130,3.42671386,146.97,146.91,4.7449]
[1726862335335,3.42671386,146.97,146.91,1.3417]
[1726862335839,3.42671386,146.97,146.91,4.7448]
[1726862335840,3.4027,146.94,146.91,4.7448]
[1726862337634,3.4024,146.95,146.92,3.403]
[1726862337940,116.77076309,147.02,146.92,16.34]
[1726862338244,116.77076309,147.02,146.93,17.7001]
[1726862338440,3.4018,146.97,146.94,3.4024]
[1726862339642,16.34,146.98,146.93,1.3601]
[1726862339943,16.34,146.98,146.91,1.3417]
[1726862340242,3.4021,146.96,146.92,3.403]
[1726862340475,16.34,147.0,146.91,17.6817]
[1726862340946,3.4023,146.95,146.91,1.3417]
[1726862341244,3.4023,146.95,146.91,4.7447]
[1726862341642,3.4026,146.94,146.91,4.7447]
[1726862342341,16.34,146.94,146.87,1.3835]
[1726862342547,16.34,146.92,146.87,1.3835]
[1726862342754,16.34,146.94,146.87,1.3835]
[1726862342949,16.34,146.94,146.88,3.4038]
[1726862343440,3.4029,146.93,146.89,3.4036]
[1726862344346,3.4026,146.94,146.9,3.4034]
[1726862344648,16.34,146.96,146.89,1.4102]
[1726862345044,3.4029,146.93,146.89,4.8138]
[1726862345244,16.34,146.93,146.89,1.4102]
[1726862345447,16.34,146.93,146.88,1.3394]
[1726862345645,3.4036,146.9,146.86,3.4042]
[1726862345841,16.34,146.89,146.81,2.7427]
[1726862346042,16.34,146.87,146.81,2.7427]
[1726862346241,16.34,146.89,146.81,2.7427]
[1726862346648,3.4042,146.87,146.83,3.4049]
[1726862346850,16.34,146.89,146.81,19.0827]
[1726862347243,3.4041,146.88,146.83,3.4049]
[1726862347752,3.405,146.84,146.81,1.4017]
[1726862347946,16.34,146.87,146.81,1.4017]
[1726862348753,16.34,146.85,146.76,16.34]
[1726862349079,16.34,146.85,146.77,1.2865]
[1726862349848,3.4053,146.83,146.79,3.406]
[1726862350548,3.4046,146.85,146.81,3.4055]